[Event "FIDE Women World Blitz 2021"]
[Site "Warsaw"]
[Date "2021.12.30"]
[Round "14.25"]
[White "Padmini, Rout"]
[Black "Paramzina, Anastasya"]
[Result "1-0"]
[ECO "B92"]
[WhiteElo "2353"]
[BlackElo "2260"]
[Annotator "NA"]
[PlyCount "81"]
[EventDate "2021.12.29"]
[EventType "swiss"]
[EventCountry "POL"]
[Tiebreak "Cut1 Buchholz"]
[SourceTitle "playchess.com"]
[Source "ChessBase"]
[SourceQuality "1"]
[TimeControl "180+2"]

1. e4 {[%emt 0:00:02]} c5 {[%emt 0:00:01]} 2. Nf3 {[%emt 0:00:01]} d6 {[%emt 0:
00:01]} 3. d4 {[%emt 0:00:01]} cxd4 {[%emt 0:00:01]} 4. Nxd4 {[%emt 0:00:01]}
Nf6 {[%emt 0:00:01]} 5. Nc3 {[%emt 0:00:01]} a6 {[%emt 0:00:01]} 6. Be2 {
[%emt 0:00:02]} e5 {[%emt 0:00:02]} 7. Nb3 {[%emt 0:00:01]} Be7 {[%emt 0:00:03]
} 8. Qd3 {[%emt 0:00:03]} O-O {[%emt 0:00:09]} 9. Bd2 {[%emt 0:00:05]} Qc7 {
[%emt 0:00:27]} 10. O-O-O {[%emt 0:00:12]} b5 {[%emt 0:00:24]} 11. Kb1 {
[%emt 0:00:02]} Nbd7 {[%emt 0:00:29]} 12. g4 {[%emt 0:00:14]} b4 {[%emt 0:00:
36]} 13. g5 {[%emt 0:00:34]} bxc3 {[%emt 0:00:03]} 14. gxf6 {[%emt 0:00:01]}
Nxf6 {[%emt 0:00:04]} 15. Bxc3 {[%emt 0:00:03]} Bb7 {[%emt 0:00:10]} 16. f3 {
[%emt 0:00:01]} d5 {[%emt 0:00:06]} 17. Na5 {[%emt 0:00:42]} dxe4 {[%emt 0:00:
05]} 18. Qc4 {[%emt 0:00:01]} Qxc4 {[%emt 0:00:43]} 19. Bxc4 {[%emt 0:00:01]}
Bc8 {[%emt 0:00:03]} 20. fxe4 {[%emt 0:01:20]} Nxe4 {[%emt 0:00:01]} 21. Bxe5 {
[%emt 0:00:02]} Be6 {[%emt 0:00:01]} 22. Bxe6 {[%emt 0:00:04]} fxe6 {[%emt 0:
00:01]} 23. Nc6 {[%emt 0:00:04]} Bf6 {[%emt 0:00:02]} 24. Rhe1 {[%emt 0:00:03]}
Bxe5 {[%emt 0:00:02]} 25. Nxe5 {[%emt 0:00:02]} Nf6 {[%emt 0:00:04]} 26. Rd6 {
[%emt 0:00:03]} Rfd8 {[%emt 0:00:04]} 27. Rxe6 {[%emt 0:00:03]} Re8 {[%emt 0:
00:01]} 28. Rxe8+ {[%emt 0:00:03]} Rxe8 {[%emt 0:00:01]} 29. Nd3 {[%emt 0:00:
01]} Rxe1+ {[%emt 0:00:03]} 30. Nxe1 {[%emt 0:00:01]} Ng4 {[%emt 0:00:01]} 31.
Nf3 {[%emt 0:00:02]} Kf7 {[%emt 0:00:01]} 32. a4 {[%emt 0:00:01]} Kf6 {[%emt 0:
00:02]} 33. b4 {[%emt 0:00:01]} Kf5 {[%emt 0:00:02]} 34. b5 {[%emt 0:00:05]}
axb5 {[%emt 0:00:04]} 35. axb5 {[%emt 0:00:03]} Nf6 {[%emt 0:00:10]} 36. c4 {
[%emt 0:00:03]} Nd7 {[%emt 0:00:02]} 37. Kc2 {[%emt 0:00:02]} Kg4 {[%emt 0:00:
02]} 38. Nd4 {[%emt 0:00:02]} Kh3 {[%emt 0:00:01]} 39. Ne6 {[%emt 0:00:00]} g6
{[%emt 0:00:03]} 40. c5 {[%emt 0:00:02]} Kxh2 {[%emt 0:00:02]} 41. c6 1-0

[Event "FIDE Women World Blitz 2021"]
[Site "Warsaw"]
[Date "2021.12.30"]
[Round "14.26"]
[White "Serikbay, Assel"]
[Black "Bulmaga, Irina"]
[Result "1-0"]
[ECO "A62"]
[WhiteElo "2237"]
[BlackElo "2405"]
[Annotator "NA"]
[PlyCount "74"]
[EventDate "2021.12.29"]
[EventType "swiss"]
[EventCountry "POL"]
[Tiebreak "Cut1 Buchholz"]
[SourceTitle "playchess.com"]
[Source "ChessBase"]
[SourceQuality "1"]
[TimeControl "180+2"]

1. d4 {[%emt 0:00:01]} Nf6 {[%emt 0:00:02]} 2. c4 {[%emt 0:00:02]} e6 {[%emt 0:
00:01]} 3. g3 {[%emt 0:00:01]} c5 {[%emt 0:00:04]} 4. d5 {[%emt 0:00:01]} exd5
{[%emt 0:00:02]} 5. cxd5 {[%emt 0:00:01]} d6 {[%emt 0:00:01]} 6. Nc3 {[%emt 0:
00:01]} g6 {[%emt 0:00:01]} 7. Bg2 {[%emt 0:00:02]} Bg7 {[%emt 0:00:01]} 8. Nf3
{[%emt 0:00:01]} O-O {[%emt 0:00:02]} 9. O-O {[%emt 0:00:02]} Re8 {[%emt 0:00:
01]} 10. Bf4 {[%emt 0:00:06]} Ne4 {[%emt 0:00:07]} 11. Nxe4 {[%emt 0:00:03]}
Rxe4 {[%emt 0:00:01]} 12. Nd2 {[%emt 0:00:05]} Rxf4 {[%emt 0:00:04]} 13. gxf4 {
[%emt 0:00:01]} Bxb2 {[%emt 0:00:02]} 14. Rb1 {[%emt 0:00:01]} Bg7 {[%emt 0:00:
02]} 15. Nc4 {[%emt 0:00:06]} Na6 {[%emt 0:00:04]} 16. e4 {[%emt 0:00:22]} Nc7
{[%emt 0:00:03]} 17. e5 {[%emt 0:00:11]} Ne8 {[%emt 0:00:08]} 18. Qd2 {[%emt 0:
00:09]} b6 {[%emt 0:00:05]} 19. e6 {[%emt 0:00:36]} fxe6 {[%emt 0:00:05]} 20.
dxe6 {[%emt 0:00:08]} Bxe6 {[%emt 0:00:15]} 21. Bd5 {[%emt 0:00:12]} Bxd5 {
[%emt 0:00:21]} 22. Qxd5+ {[%emt 0:00:01]} Kh8 {[%emt 0:00:02]} 23. Rbe1 {
[%emt 0:00:11]} Bd4 {[%emt 0:00:30]} 24. Qf7 {[%emt 0:00:35]} Ng7 {[%emt 0:00:
48]} 25. Re7 {[%emt 0:00:01]} b5 {[%emt 0:00:01]} 26. Ne3 {[%emt 0:00:12]} a5 {
[%emt 0:00:30]} 27. Ng4 {[%emt 0:00:08]} Qf8 {[%emt 0:00:04]} 28. Rfe1 {
[%emt 0:00:16]} Qxf7 {[%emt 0:00:16]} 29. Rxf7 {[%emt 0:00:00]} c4 {[%emt 0:00:
03]} 30. Ree7 {[%emt 0:00:05]} c3 {[%emt 0:00:03]} 31. Rc7 {[%emt 0:00:07]} b4
{[%emt 0:00:03]} 32. Ne5 {[%emt 0:00:09]} dxe5 {[%emt 0:00:09]} 33. Rxg7 {
[%emt 0:00:01]} exf4 {[%emt 0:00:01]} 34. Rxh7+ {[%emt 0:00:01]} Kg8 {[%emt 0:
00:01]} 35. Rh6 {[%emt 0:00:01]} Ra6 {[%emt 0:00:04]} 36. Rhh7 {[%emt 0:00:06]}
Re6 {[%emt 0:00:03]} 37. Rhd7 {[%emt 0:00:02]} Re8 {[%emt 0:00:08]} 1-0

[Event "FIDE Women World Blitz 2021"]
[Site "Warsaw"]
[Date "2021.12.30"]
[Round "14.27"]
[White "Majdan, Joanna"]
[Black "Gaboyan, Susanna"]
[Result "1-0"]
[ECO "B30"]
[WhiteElo "2325"]
[BlackElo "2253"]
[Annotator "NA"]
[PlyCount "101"]
[EventDate "2021.12.29"]
[EventType "swiss"]
[EventCountry "POL"]
[Tiebreak "Cut1 Buchholz"]
[SourceTitle "playchess.com"]
[Source "ChessBase"]
[SourceQuality "1"]
[TimeControl "180+2"]

1. e4 {[%emt 0:00:01]} c5 {[%emt 0:00:01]} 2. Nc3 {[%emt 0:00:01]} Nc6 {
[%emt 0:00:00]} 3. Bb5 {[%emt 0:00:01]} Nd4 {[%emt 0:00:01]} 4. Nf3 {[%emt 0:
00:01]} e6 {[%emt 0:00:03]} 5. O-O {[%emt 0:00:02]} a6 {[%emt 0:00:00]} 6. Bd3
{[%emt 0:00:01]} Nc6 {[%emt 0:00:01]} 7. b3 {[%emt 0:00:11]} d5 {[%emt 0:00:23]
} 8. exd5 {[%emt 0:00:09]} exd5 {[%emt 0:00:01]} 9. Bb2 {[%emt 0:00:01]} Nf6 {
[%emt 0:00:04]} 10. Re1+ {[%emt 0:00:19]} Be7 {[%emt 0:00:00]} 11. h3 {[%emt 0:
00:00]} O-O {[%emt 0:00:03]} 12. Bf1 {[%emt 0:00:06]} Bd6 {[%emt 0:00:08]} 13.
d4 {[%emt 0:00:06]} b6 {[%emt 0:00:13]} 14. Bd3 {[%emt 0:00:11]} Bc7 {[%emt 0:
00:07]} 15. Bf1 {[%emt 0:00:23]} Qd6 {[%emt 0:00:07]} 16. g3 {[%emt 0:00:01]}
Bf5 {[%emt 0:00:27]} 17. a3 {[%emt 0:00:09]} Rfe8 {[%emt 0:00:07]} 18. dxc5 {
[%emt 0:00:06]} bxc5 {[%emt 0:00:03]} 19. Bg2 {[%emt 0:00:13]} Rxe1+ 20. Nxe1 {
[%emt 0:00:02]} d4 {[%emt 0:00:15]} 21. Na4 {[%emt 0:00:05]} Re8 {[%emt 0:00:
09]} 22. Nd3 {[%emt 0:00:06]} c4 {[%emt 0:00:29]} 23. bxc4 {[%emt 0:00:06]} Na5
{[%emt 0:00:01]} 24. Nb4 {[%emt 0:00:22]} Nxc4 {[%emt 0:00:21]} 25. Qxd4 {
[%emt 0:00:02]} Nxb2 {[%emt 0:00:08]} 26. Qxd6 {[%emt 0:00:03]} Bxd6 {[%emt 0:
00:02]} 27. Nxb2 {[%emt 0:00:01]} a5 {[%emt 0:00:16]} 28. N4d3 {[%emt 0:00:06]}
Re2 {[%emt 0:00:05]} 29. Nc4 {[%emt 0:00:18]} Bc7 {[%emt 0:00:01]} 30. Ne3 {
[%emt 0:00:02]} Bxd3 {[%emt 0:00:10]} 31. cxd3 {[%emt 0:00:01]} g6 {[%emt 0:00:
04]} 32. Rc1 {[%emt 0:00:11]} Bxg3 {[%emt 0:00:03]} 33. fxg3 {[%emt 0:00:08]}
Rxe3 {[%emt 0:00:01]} 34. Bf1 {[%emt 0:00:07]} Rxg3+ {[%emt 0:00:01]} 35. Kf2 {
[%emt 0:00:01]} Rg5 {[%emt 0:00:02]} 36. Rc8+ {[%emt 0:00:01]} Kg7 {[%emt 0:00:
00]} 37. Ra8 {[%emt 0:00:05]} h5 {[%emt 0:00:03]} 38. d4 {[%emt 0:00:02]} Ne4+
{[%emt 0:00:01]} 39. Ke3 {[%emt 0:00:02]} Nc3 {[%emt 0:00:04]} 40. Kd2 {
[%emt 0:00:05]} Ne4+ {[%emt 0:00:04]} 41. Ke3 {[%emt 0:00:02]} Ng3 {[%emt 0:00:
02]} 42. Bd3 {[%emt 0:00:03]} h4 {[%emt 0:00:04]} 43. Kf4 {[%emt 0:00:08]} Rd5
{[%emt 0:00:03]} 44. Ke3 {[%emt 0:00:02]} g5 {[%emt 0:00:05]} 45. a4 {[%emt 0:
00:01]} f5 {[%emt 0:00:02]} 46. Ra7+ {[%emt 0:00:02]} Kf6 {[%emt 0:00:01]} 47.
Ra6+ {[%emt 0:00:01]} Kg7 {[%emt 0:00:03]} 48. Ra7+ {[%emt 0:00:00]} Kg6 {
[%emt 0:00:01]} 49. Ra6+ {[%emt 0:00:02]} Kh5 {[%emt 0:00:01]} 50. Bc4 {
[%emt 0:00:03]} Rd8 {[%emt 0:00:06]} 51. Bf7# {[%emt 0:00:01]} 1-0

[Event "FIDE Women World Blitz 2021"]
[Site "Warsaw"]
[Date "2021.12.30"]
[Round "14.28"]
[White "Garcia Martin, Marta"]
[Black "Semenova, Elena"]
[Result "0-1"]
[ECO "C01"]
[WhiteElo "2194"]
[BlackElo "2233"]
[Annotator "NA"]
[PlyCount "94"]
[EventDate "2021.12.29"]
[EventType "swiss"]
[EventCountry "POL"]
[Tiebreak "Cut1 Buchholz"]
[SourceTitle "playchess.com"]
[Source "ChessBase"]
[SourceQuality "1"]
[TimeControl "180+2"]

1. e4 {[%emt 0:00:01]} e5 {[%emt 0:00:00]} 2. Nf3 {[%emt 0:00:02]} Nf6 {
[%emt 0:00:01]} 3. Nxe5 {[%emt 0:00:07]} d6 {[%emt 0:00:01]} 4. Nf3 {[%emt 0:
00:01]} Nxe4 {[%emt 0:00:01]} 5. d3 {[%emt 0:00:03]} Nf6 6. d4 d5 {[%emt 0:00:
01]} 7. Bd3 {[%emt 0:00:01]} Bd6 {[%emt 0:00:01]} 8. O-O {[%emt 0:00:02]} O-O {
[%emt 0:00:01]} 9. Bg5 {[%emt 0:00:02]} h6 {[%emt 0:00:02]} 10. Bh4 {[%emt 0:
00:02]} g5 {[%emt 0:00:08]} 11. Bg3 {[%emt 0:00:01]} Bg4 {[%emt 0:00:01]} 12.
Bxd6 {[%emt 0:00:23]} Qxd6 {[%emt 0:00:20]} 13. Nbd2 {[%emt 0:00:07]} Nbd7 {
[%emt 0:00:00]} 14. c3 {[%emt 0:00:10]} Rae8 {[%emt 0:00:05]} 15. Qc2 {[%emt 0:
00:02]} Re7 {[%emt 0:00:33]} 16. h3 {[%emt 0:00:08]} Bxf3 {[%emt 0:00:13]} 17.
Nxf3 {[%emt 0:00:01]} Rfe8 {[%emt 0:00:02]} 18. c4 {[%emt 0:00:34]} dxc4 {
[%emt 0:00:11]} 19. Bxc4 {[%emt 0:00:01]} Kg7 {[%emt 0:00:03]} 20. Rad1 {
[%emt 0:00:19]} c6 {[%emt 0:00:05]} 21. Bd3 {[%emt 0:00:22]} Nd5 {[%emt 0:00:
12]} 22. a3 {[%emt 0:00:18]} Nf4 {[%emt 0:00:05]} 23. Bf5 {[%emt 0:00:07]} Re2
{[%emt 0:00:10]} 24. Rd2 {[%emt 0:00:23]} Nb6 {[%emt 0:00:25]} 25. Rfd1 {
[%emt 0:00:14]} Qd5 {[%emt 0:00:01]} 26. Bd3 {[%emt 0:00:12]} Rxd2 27. Qxd2 {
[%emt 0:00:00]} Nxh3+ {[%emt 0:00:18]} 28. gxh3 {[%emt 0:00:09]} Qxf3 {[%emt 0:
00:01]} 29. Bf1 {[%emt 0:00:01]} Nd5 {[%emt 0:00:03]} 30. Bg2 {[%emt 0:00:02]}
Qe2 {[%emt 0:00:10]} 31. Bxd5 {[%emt 0:00:05]} cxd5 {[%emt 0:00:06]} 32. Kg2 {
[%emt 0:00:03]} Re4 {[%emt 0:00:13]} 33. Qxe2 {[%emt 0:00:02]} Rxe2 {[%emt 0:
00:01]} 34. Rb1 {[%emt 0:00:02]} Rd2 {[%emt 0:00:04]} 35. Rc1 {[%emt 0:00:01]}
Rxb2 {[%emt 0:00:03]} 36. Rc5 {[%emt 0:00:01]} Rb3 {[%emt 0:00:03]} 37. Rxd5 {
[%emt 0:00:01]} Rxa3 {[%emt 0:00:01]} 38. Rd7 {[%emt 0:00:01]} Rb3 {[%emt 0:00:
01]} 39. d5 {[%emt 0:00:04]} Kf6 {[%emt 0:00:02]} 40. Rd6+ {[%emt 0:00:01]} Ke7
{[%emt 0:00:07]} 41. Rxh6 {[%emt 0:00:02]} a5 {[%emt 0:00:00]} 42. Rh5 {
[%emt 0:00:04]} f6 {[%emt 0:00:03]} 43. Rh6 {[%emt 0:00:03]} a4 {[%emt 0:00:08]
} 44. h4 {[%emt 0:00:01]} gxh4 45. Rxh4 {[%emt 0:00:01]} b5 {[%emt 0:00:03]}
46. Rd4 {[%emt 0:00:04]} Kd6 {[%emt 0:00:01]} 47. Rd1 {[%emt 0:00:01]} b4 {
[%emt 0:00:01]} 0-1

[Event "FIDE Women World Blitz 2021"]
[Site "Warsaw"]
[Date "2021.12.30"]
[Round "14.29"]
[White "Hryzlova, Sofiia"]
[Black "Efroimski, Marsel"]
[Result "1-0"]
[ECO "A84"]
[WhiteElo "2097"]
[BlackElo "2419"]
[Annotator "NA"]
[PlyCount "139"]
[EventDate "2021.12.29"]
[EventType "swiss"]
[EventCountry "POL"]
[Tiebreak "Cut1 Buchholz"]
[SourceTitle "playchess.com"]
[Source "ChessBase"]
[SourceQuality "1"]
[TimeControl "180+2"]

1. d4 {[%emt 0:00:01]} e6 {[%emt 0:00:00]} 2. c4 {[%emt 0:00:03]} b6 {[%emt 0:
00:01]} 3. Nc3 {[%emt 0:00:05]} Bb7 {[%emt 0:00:01]} 4. Nf3 {[%emt 0:00:02]} f5
{[%emt 0:00:02]} 5. g3 {[%emt 0:00:02]} Nf6 {[%emt 0:00:07]} 6. Bg2 {[%emt 0:
00:02]} Bb4 {[%emt 0:00:01]} 7. O-O {[%emt 0:00:03]} O-O {[%emt 0:00:02]} 8.
Qc2 {[%emt 0:00:22]} Bxc3 {[%emt 0:00:13]} 9. Qxc3 {[%emt 0:00:02]} Be4 {
[%emt 0:00:02]} 10. b4 {[%emt 0:00:08]} Qe8 {[%emt 0:00:17]} 11. a4 {[%emt 0:
00:08]} a5 {[%emt 0:00:19]} 12. b5 {[%emt 0:00:04]} d6 {[%emt 0:00:04]} 13. Ba3
{[%emt 0:00:06]} Nbd7 {[%emt 0:00:02]} 14. c5 {[%emt 0:00:11]} Nd5 {[%emt 0:00:
03]} 15. Qc1 {[%emt 0:00:02]} Qe7 {[%emt 0:00:25]} 16. cxd6 {[%emt 0:00:26]}
cxd6 {[%emt 0:00:00]} 17. Ne5 {[%emt 0:00:14]} Bxg2 {[%emt 0:00:09]} 18. Kxg2 {
[%emt 0:00:01]} Nxe5 19. dxe5 {[%emt 0:00:02]} Qb7 {[%emt 0:01:05]} 20. Qc6 {
[%emt 0:00:46]} Qxc6 {[%emt 0:00:02]} 21. bxc6 {[%emt 0:00:02]} dxe5 {[%emt 0:
00:02]} 22. Bxf8 {[%emt 0:00:02]} Kxf8 {[%emt 0:00:01]} 23. Rfc1 {[%emt 0:00:
04]} Ke7 {[%emt 0:00:02]} 24. f3 {[%emt 0:00:08]} Rc8 {[%emt 0:00:06]} 25. e4 {
[%emt 0:00:03]} Nb4 {[%emt 0:00:03]} 26. c7 {[%emt 0:00:07]} Kd7 {[%emt 0:00:
11]} 27. exf5 {[%emt 0:00:05]} exf5 {[%emt 0:00:01]} 28. Re1 {[%emt 0:00:01]}
Ke6 {[%emt 0:00:16]} 29. Rec1 {[%emt 0:00:14]} Kd6 {[%emt 0:00:06]} 30. Rd1+ {
[%emt 0:00:04]} Kxc7 {[%emt 0:00:04]} 31. Rac1+ {[%emt 0:00:02]} Nc6 {[%emt 0:
00:01]} 32. Rd5 {[%emt 0:00:03]} Re8 {[%emt 0:00:01]} 33. Rcd1 {[%emt 0:00:06]}
Nd4 {[%emt 0:00:02]} 34. f4 {[%emt 0:00:03]} Nc6 {[%emt 0:00:05]} 35. Rd7+ {
[%emt 0:00:02]} Kc8 {[%emt 0:00:01]} 36. Rxg7 {[%emt 0:00:01]} e4 {[%emt 0:00:
02]} 37. Rdd7 {[%emt 0:00:02]} Nd8 {[%emt 0:00:03]} 38. Rde7 {[%emt 0:00:03]}
Rf8 {[%emt 0:00:02]} 39. Rxh7 {[%emt 0:00:01]} Rf6 {[%emt 0:00:04]} 40. Rc7+ {
[%emt 0:00:04]} Kb8 {[%emt 0:00:01]} 41. Rhd7 {[%emt 0:00:02]} Rf8 {[%emt 0:00:
04]} 42. h4 {[%emt 0:00:04]} Ne6 {[%emt 0:00:03]} 43. Rb7+ {[%emt 0:00:01]} Kc8
{[%emt 0:00:01]} 44. Rf7 {[%emt 0:00:03]} Rd8 {[%emt 0:00:02]} 45. Rxb6 {
[%emt 0:00:03]} Rd2+ {[%emt 0:00:01]} 46. Kf1 {[%emt 0:00:05]} Nd4 {[%emt 0:00:
01]} 47. Rd6 {[%emt 0:00:03]} e3 {[%emt 0:00:03]} 48. Rxd4 {[%emt 0:00:05]}
Rxd4 {[%emt 0:00:02]} 49. Ke2 {[%emt 0:00:02]} Rxa4 {[%emt 0:00:01]} 50. Kxe3 {
[%emt 0:00:01]} Ra3+ {[%emt 0:00:00]} 51. Kf2 {[%emt 0:00:01]} Ra1 {[%emt 0:00:
02]} 52. Rxf5 {[%emt 0:00:02]} a4 {[%emt 0:00:00]} 53. Ra5 {[%emt 0:00:01]} a3
{[%emt 0:00:01]} 54. Kf3 {[%emt 0:00:02]} a2 {[%emt 0:00:03]} 55. Kg4 {[%emt 0:
00:01]} Kd8 {[%emt 0:00:00]} 56. h5 {[%emt 0:00:01]} Ke8 {[%emt 0:00:01]} 57.
Kg5 {[%emt 0:00:01]} Kf7 {[%emt 0:00:02]} 58. g4 {[%emt 0:00:02]} Kg7 {[%emt 0:
00:02]} 59. Ra7+ {[%emt 0:00:01]} Kf8 {[%emt 0:00:02]} 60. Kf6 {[%emt 0:00:01]}
Kg8 {[%emt 0:00:02]} 61. Kg6 {[%emt 0:00:02]} Kf8 {[%emt 0:00:01]} 62. h6 {
[%emt 0:00:01]} Rg1 {[%emt 0:00:01]} 63. Ra8+ {[%emt 0:00:02]} Ke7 {[%emt 0:00:
02]} 64. g5 {[%emt 0:00:10]} a1=Q {[%emt 0:00:04]} 65. Rxa1 {[%emt 0:00:02]}
Rxa1 {[%emt 0:00:01]} 66. h7 {[%emt 0:00:01]} Rh1 {[%emt 0:00:06]} 67. Kg7 {
[%emt 0:00:01]} Ke6 {[%emt 0:00:03]} 68. h8=Q {[%emt 0:00:01]} Rxh8 {[%emt 0:
00:02]} 69. Kxh8 {[%emt 0:00:02]} Kf5 {[%emt 0:00:00]} 70. Kh7 {[%emt 0:00:01]}
1-0

[Event "FIDE Women World Blitz 2021"]
[Site "Warsaw"]
[Date "2021.12.30"]
[Round "14.30"]
[White "Ovod, Evgenija"]
[Black "Mammadova, Gulnar"]
[Result "1-0"]
[ECO "B06"]
[WhiteElo "2366"]
[BlackElo "2395"]
[Annotator "NA"]
[PlyCount "156"]
[EventDate "2021.12.29"]
[EventType "swiss"]
[EventCountry "POL"]
[Tiebreak "Cut1 Buchholz"]
[SourceTitle "playchess.com"]
[Source "ChessBase"]
[SourceQuality "1"]
[TimeControl "180+2"]

1. e4 {[%emt 0:00:00]} g6 {[%emt 0:00:01]} 2. d4 {[%emt 0:00:02]} Bg7 {[%emt 0:
00:00]} 3. c3 {[%emt 0:00:01]} d6 {[%emt 0:00:07]} 4. Bd3 {[%emt 0:00:02]} Nd7
{[%emt 0:00:02]} 5. Nf3 {[%emt 0:00:02]} e5 {[%emt 0:00:02]} 6. O-O {[%emt 0:
00:03]} Ne7 {[%emt 0:00:01]} 7. Be3 {[%emt 0:00:17]} O-O {[%emt 0:00:02]} 8.
Nbd2 {[%emt 0:00:03]} a6 {[%emt 0:00:06]} 9. a4 {[%emt 0:00:01]} b6 {[%emt 0:
00:00]} 10. b4 {[%emt 0:00:10]} Bb7 {[%emt 0:00:01]} 11. d5 {[%emt 0:00:03]} h6
{[%emt 0:00:03]} 12. Ne1 {[%emt 0:00:12]} f5 {[%emt 0:00:04]} 13. f3 {[%emt 0:
00:01]} Nf6 {[%emt 0:00:05]} 14. c4 {[%emt 0:00:11]} f4 {[%emt 0:00:09]} 15.
Bf2 {[%emt 0:00:02]} g5 {[%emt 0:00:02]} 16. c5 {[%emt 0:00:06]} h5 {[%emt 0:
00:04]} 17. cxb6 {[%emt 0:00:06]} cxb6 {[%emt 0:00:01]} 18. Nc4 {[%emt 0:00:03]
} b5 {[%emt 0:00:04]} 19. Bb6 {[%emt 0:00:37]} Qd7 {[%emt 0:00:01]} 20. Na5 {
[%emt 0:00:12]} Bxd5 {[%emt 0:00:31]} 21. exd5 {[%emt 0:00:09]} Nexd5 {[%emt 0:
00:01]} 22. Qb3 {[%emt 0:00:23]} Kh8 {[%emt 0:00:01]} 23. Bf2 {[%emt 0:00:10]}
g4 {[%emt 0:00:06]} 24. Be4 {[%emt 0:00:07]} Nxe4 {[%emt 0:00:15]} 25. fxe4 {
[%emt 0:00:08]} Nf6 {[%emt 0:00:01]} 26. Qd3 {[%emt 0:00:07]} bxa4 {[%emt 0:00:
12]} 27. Bh4 {[%emt 0:00:06]} Ne8 {[%emt 0:00:26]} 28. Nc2 {[%emt 0:00:11]} Nc7
{[%emt 0:00:02]} 29. Rad1 {[%emt 0:00:06]} Nb5 {[%emt 0:00:01]} 30. Nc4 {
[%emt 0:00:05]} Bf6 {[%emt 0:00:10]} 31. Bxf6+ {[%emt 0:00:02]} Rxf6 {[%emt 0:
00:00]} 32. Kh1 {[%emt 0:00:03]} Qf7 {[%emt 0:00:15]} 33. Nb6 {[%emt 0:00:03]}
Rg8 {[%emt 0:00:05]} 34. Nd5 {[%emt 0:00:01]} Rfg6 {[%emt 0:00:06]} 35. Na3 {
[%emt 0:00:01]} Nd4 {[%emt 0:00:02]} 36. Nc4 {[%emt 0:00:03]} g3 {[%emt 0:00:
01]} 37. h3 {[%emt 0:00:01]} f3 {[%emt 0:00:06]} 38. Nce3 {[%emt 0:00:03]} f2 {
[%emt 0:00:22]} 39. Nf5 {[%emt 0:00:05]} Qe6 {[%emt 0:00:11]} 40. Nde7 {
[%emt 0:00:06]} Rg5 {[%emt 0:00:11]} 41. Nxg8 {[%emt 0:00:01]} Rxg8 {[%emt 0:
00:02]} 42. Nxg3 {[%emt 0:00:04]} Qg6 {[%emt 0:00:08]} 43. Rxf2 {[%emt 0:00:03]
} Qxg3 {[%emt 0:00:00]} 44. Qxg3 {[%emt 0:00:03]} Rxg3 {[%emt 0:00:01]} 45. Rf6
{[%emt 0:00:03]} Nb5 {[%emt 0:00:08]} 46. Rf8+ {[%emt 0:00:02]} Kg7 {[%emt 0:
00:01]} 47. Ra8 {[%emt 0:00:00]} Re3 {[%emt 0:00:05]} 48. Rxa6 {[%emt 0:00:02]}
Rxe4 {[%emt 0:00:01]} 49. Rxa4 {[%emt 0:00:00]} Kg6 {[%emt 0:00:02]} 50. Ra6 {
[%emt 0:00:02]} Rxb4 {[%emt 0:00:02]} 51. Rb6 {[%emt 0:00:03]} Kf5 {[%emt 0:00:
03]} 52. Rdxd6 {[%emt 0:00:02]} Nxd6 {[%emt 0:00:01]} 53. Rxb4 {[%emt 0:00:01]}
e4 {[%emt 0:00:03]} 54. Kg1 {[%emt 0:00:00]} Kf4 {[%emt 0:00:02]} 55. Kf2 {
[%emt 0:00:02]} Nf5 {[%emt 0:00:01]} 56. Ra4 {[%emt 0:00:03]} h4 {[%emt 0:00:
01]} 57. Rb4 {[%emt 0:00:03]} Ng3 {[%emt 0:00:01]} 58. Rb8 {[%emt 0:00:04]} e3+
{[%emt 0:00:01]} 59. Ke1 {[%emt 0:00:01]} Ne4 {[%emt 0:00:04]} 60. Rf8+ {
[%emt 0:00:03]} Kg3 {[%emt 0:00:01]} 61. Rg8+ {[%emt 0:00:02]} Kf4 {[%emt 0:00:
01]} 62. Rg4+ {[%emt 0:00:01]} Kf5 {[%emt 0:00:01]} 63. Rxh4 {[%emt 0:00:01]}
Nc3 {[%emt 0:00:05]} 64. Rc4 {[%emt 0:00:03]} Nd5 {[%emt 0:00:02]} 65. Ke2 {
[%emt 0:00:03]} Ke6 {[%emt 0:00:03]} 66. Re4+ {[%emt 0:00:02]} Kf5 {[%emt 0:00:
01]} 67. Rxe3 {[%emt 0:00:01]} Nf4+ {[%emt 0:00:01]} 68. Kf3 {[%emt 0:00:02]}
Nd5 {[%emt 0:00:00]} 69. Ra3 {[%emt 0:00:02]} Nb4 {[%emt 0:00:03]} 70. Ra5+ {
[%emt 0:00:01]} Kf6 {[%emt 0:00:00]} 71. g4 {[%emt 0:00:01]} Nd3 {[%emt 0:00:
01]} 72. h4 {[%emt 0:00:02]} Ne1+ {[%emt 0:00:02]} 73. Kg3 {[%emt 0:00:01]} Nc2
{[%emt 0:00:01]} 74. g5+ {[%emt 0:00:03]} Kg6 {[%emt 0:00:01]} 75. Ra6+ {
[%emt 0:00:01]} Kf5 {[%emt 0:00:03]} 76. Rf6+ {[%emt 0:00:01]} Ke5 {[%emt 0:00:
00]} 77. h5 {[%emt 0:00:02]} Nd4 {[%emt 0:00:02]} 78. Kg4 {[%emt 0:00:02]} Kd5
{[%emt 0:00:03]} 1-0